fUST/lending_fUST_20250824
["ID","MTS","AMOUNT","RATE_DAILY","PERIOD"]
[381073216,1755996698493,500.57947762,0.00023353,2]
[381073217,1755996699209,500.57947762,0.0002508,2]
[381073218,1755996740683,1000.0,0.00025,4]
[381073219,1755996804202,160.484735,0.00013699,2]
[381073220,1755996863955,445.08882668,0.000199,2]
[381073221,1755996864060,445.08882666,0.00021627,2]
[381073222,1755996864582,445.08882666,0.00023353,2]
[381073223,1755996869209,2211.67471364,0.0002501,2]
[381073225,1755997030707,400.57994399,0.00021627,2]
[381073226,1755997030903,400.57994411,0.000199,2]
[381073227,1755997031781,400.57994399,0.00023353,2]
[381073228,1755997048350,2788.32528636,0.0002501,2]
[381073255,1755997174381,2057.90376602,0.0002501,2]
[381073256,1755997174404,7723.09623398,0.0002501,2]
[381073257,1755997196938,413.65228486,0.000199,2]
[381073258,1755997197331,413.65228482,0.00021627,2]
[381073260,1755997198235,413.65228482,0.00023353,2]
[381073262,1755997363354,372.28705657,0.000199,2]
[381073263,1755997363831,372.28705633,0.00021627,2]
[381073264,1755997363894,372.28705633,0.00023353,2]
[381073265,1755997529609,335.0583509,0.000199,2]
[381073266,1755997529761,335.05835069,0.00021627,2]
[381073267,1755997529831,335.05835069,0.00023353,2]
[381073270,1755997612741,258.85282259,0.00023,2]
[381073271,1755997696145,301.55251565,0.000199,2]
[381073272,1755997696979,301.55251562,0.00023353,2]
[381073273,1755997697161,301.55251562,0.00021627,2]
[381073274,1755997754121,-301.55251562,0.0002508,2]
[381073275,1755997754142,-7172.00500782,0.00025943,4]
[381073288,1755997832361,-167.21565501,0.00026655,2]
[381073290,1755997832372,-575.0,0.00026737,2]
[381073292,1755997832383,-632.5385419,0.00026739,2]
[381073300,1755997835650,-3313.4532665,0.00026739,2]
[381073301,1755997835661,-300.0,0.00026755,2]
[381073302,1755997835670,-300.0,0.00026755,2]
[381073303,1755997835680,-300.0,0.00026755,2]
[381073304,1755997835690,-8828.01,0.00026756,2]
[381073305,1755997835699,-301.55251562,0.00026806,6]
[381073306,1755997835709,-179.001075,0.00026886,2]
[381073308,1755997835720,-500.0,0.00027397,5]
[381073309,1755997835729,-160.0,0.00027738,2]
[381073310,1755997835739,-931.61710942,0.00027744,2]
[381073311,1755997835749,-3716.45799434,0.00028,2]
[381073312,1755997835759,-844.50316758,0.00028,7]
[381073313,1755997835768,-167.21565501,0.00028233,2]
[381073314,1755997835778,-199.0,0.00028333,10]
[381073315,1755997835788,-199.0,0.00028376,120]
[381073316,1755997835798,-199.0,0.00028376,120]
[381073317,1755997835808,-1349.17044255,0.00028456,2]
[381073318,1755997835818,-2645.12070913,0.00028473,2]
[381073319,1755997835828,-199.0,0.00028476,120]
[381073320,1755997835837,-199.0,0.00028476,120]
[381073321,1755997835847,-276.203,0.00028533,20]
[381073322,1755997835856,-301.55251562,0.00028533,10]
[381073323,1755997835866,-1268.90369869,0.00028557,2]
[381073336,1755997838276,-50438.77782901,0.00028557,2]
[381073337,1755997838285,-188.93,0.00028557,3]
[381073338,1755997838295,-566.79,0.00028557,3]
[381073339,1755997838305,-500.0,0.00028566,2]
[381073340,1755997838315,-181.75983977,0.00028566,2]
[381073341,1755997838326,-242.87691068,0.00028566,2]
[381073342,1755997838336,-370000.0,0.00028567,2]
[381073343,1755997838345,-1183.82097531,0.00028573,2]
[381073344,1755997838354,-199.0,0.00028576,120]
[381073345,1755997838363,-199.0,0.00028576,120]
[381073346,1755997838373,-261.41,0.000286,7]
[381073347,1755997838383,-874.5,0.000286,7]
[381073348,1755997838393,-500.22444816,0.000286,5]
[381073349,1755997838403,-500.0,0.000286,5]
[381073351,1755997838413,-500.0,0.000286,5]
[381073352,1755997838422,-500.0,0.000286,5]
[381073353,1755997838431,-500.0,0.000286,5]
[381073354,1755997838441,-500.0,0.000286,5]
[381073355,1755997838451,-155.8654741,0.000286,5]
[381073356,1755997838460,-500.0,0.000286,5]
[381073357,1755997838470,-500.0,0.000286,5]
[381073358,1755997838480,-500.0,0.000286,5]
[381073359,1755997838490,-500.0,0.000286,5]
[381073360,1755997838500,-500.0,0.000286,5]
[381073361,1755997838509,-500.0,0.000286,5]
[381073362,1755997838519,-215.94678008,0.00028612,2]
[381073363,1755997838528,-160.0,0.00028612,2]
[381073364,1755997838538,-160.0,0.00028612,2]
[381073365,1755997838548,-232.37252479,0.00028612,2]
[381073366,1755997838557,-529.05847148,0.00028612,2]
[381073367,1755997838566,-160.0,0.00028642,2]
[381073368,1755997838576,-217.0334113,0.00028642,2]
[381073369,1755997838586,-417.15472785,0.00028675,2]
[381073370,1755997838595,-199.0,0.00028676,120]
[381073371,1755997838605,-844.50316758,0.00028707,2]
[381073372,1755997838615,-12695.67094824,0.00028717,2]
[381073373,1755997838625,-199.0,0.00028776,120]
[381073374,1755997838634,-416.0,0.00028933,2]
[381073375,1755997838643,-1000.0,0.00029148,5]
[381073376,1755997838653,-615.03446656,0.00029148,5]
[381073377,1755997838662,-1000.0,0.00029148,5]
[381073378,1755997838672,-1000.0,0.00029148,5]
[381073379,1755997838682,-1000.0,0.00029148,5]
[381073380,1755997838691,-458.46862542,0.00029148,5]
[381073381,1755997838701,-1000.0,0.00029148,5]
[381073382,1755997838710,-331.54512723,0.00029148,5]
[381073383,1755997838722,-153.0,0.00029307,7]
[381073384,1755997838732,-203.40023361,0.00029307,7]
[381073385,1755997838741,-150.0,0.00029438,2]
[381073386,1755997838750,-250.0,0.00029438,10]
[381073387,1755997838760,-250.0,0.00029438,10]
[381073388,1755997838769,-250.0,0.00029438,10]
[381073389,1755997838778,-250.0,0.00029438,10]
[381073390,1755997838788,-7386.81164682,0.00029686,2]
[381073391,1755997838797,-1500.0,0.00029696,5]
[381073392,1755997838806,-1500.0,0.00029696,5]
[381073393,1755997838816,-1500.0,0.00029696,5]
[381073394,1755997838825,-1500.0,0.00029696,5]
[381073395,1755997838835,-508.01702139,0.00029794,2]
[381073396,1755997838844,-2032.06808555,0.00029794,2]
[381073397,1755997838853,-450.49292871,0.00029794,2]
[381073398,1755997838862,-4572.15319249,0.00029794,2]
[381073399,1755997838872,-8120.14406986,0.00029794,2]
[381073400,1755997838882,-1800.16974311,0.00029794,2]
[381073401,1755997838891,-377.86,0.00029927,3]
[381073402,1755997838901,-2000.0,0.00030244,5]
[381073403,1755997838911,-1000.0,0.00030244,5]
[381073404,1755997838920,-1350.14075058,0.00030244,5]
[381073405,1755997838929,-1000.0,0.00030244,5]
[381073406,1755997838939,-301.55251562,0.00030259,13]
[381073407,1755997838949,-2524.82941417,0.00030434,2]
[381073408,1755997838958,-2618.2481025,0.00030489,2]
[381073409,1755997838969,-2715.12328229,0.00030544,2]
[381073410,1755997838978,-2815.58284374,0.00030599,2]
[381073411,1755997838988,-2919.75940895,0.00030654,2]
[381073412,1755997838998,-3027.79050709,0.00030709,2]
[381073413,1755997839007,-7386.81164682,0.00030754,2]
[381073414,1755997839017,-3139.81875585,0.00030764,2]
[381073415,1755997839027,-500.0,0.00030792,5]
[381073416,1755997839036,-3255.99204981,0.00030819,2]
[381073417,1755997839046,-1522.59372516,0.00030874,2]
[381073418,1755997839055,-10636.97,0.00031,2]
[381073419,1755997839064,-1349.1704425,0.00031891,2]
[381073420,1755997839073,-301.55251562,0.00031986,17]
[381073421,1755997839082,-261.41,0.000321,7]
[381073422,1755997839092,-874.5,0.000323,7]
[381073423,1755997839101,-754.73,0.00032876,120]
[381073424,1755997839110,-301.55251562,0.00033712,21]
[381073425,1755997839120,-754.73,0.00034246,120]
[381073426,1755997839130,-151.0,0.00034518,2]
[381073427,1755997839139,-190.89222303,0.00034518,2]
[381073428,1755997839148,-151.0,0.00034518,2]
[381073429,1755997839158,-151.0,0.00034518,2]
[381073430,1755997839167,-151.0,0.00034518,2]
[381073431,1755997839177,-151.0,0.00034518,2]
[381073432,1755997839186,-151.0,0.00034518,2]
[381073433,1755997839195,-151.000001,0.00034518,2]
[381073434,1755997839205,-151.0,0.00034518,2]
[381073435,1755997839215,-151.0,0.00034518,2]
[381073436,1755997839224,-151.0,0.00034518,2]
[381073437,1755997839234,-151.0,0.00034518,2]
[381073438,1755997839243,-151.0,0.00034518,2]
[381073439,1755997839253,-151.0,0.00034518,2]
[381073440,1755997839262,-151.0,0.00034518,2]
[381073441,1755997839273,-151.0,0.00034518,2]
[381073442,1755997839283,-151.0,0.00034518,2]
[381073443,1755997839292,-151.0,0.00034518,2]
[381073444,1755997839301,-500.0,0.00034518,2]
[381073445,1755997839310,-151.24897978,0.00034518,2]
[381073446,1755997839320,-151.0,0.00034518,2]
[381073447,1755997839334,-151.0,0.00034518,2]
[381073448,1755997839343,-151.0,0.00034518,2]
[381073449,1755997839353,-151.0,0.00034518,2]
[381073450,1755997839363,-151.0,0.00034518,2]
[381073451,1755997839372,-151.0,0.00034518,2]
[381073452,1755997839382,-151.0,0.00034518,2]
[381073453,1755997839392,-151.0,0.00034518,2]
[381073454,1755997839401,-151.0,0.00034518,2]
[381073455,1755997839411,-151.0,0.00034518,2]
[381073456,1755997839421,-151.0,0.00034518,2]
[381073457,1755997839430,-151.0,0.00034792,2]
[381073458,1755997839440,-151.0,0.00034792,2]
[381073459,1755997839449,-151.0,0.00034792,2]
[381073460,1755997839458,-500.0,0.00034792,2]
[381073461,1755997839468,-151.0,0.00034792,2]
[381073462,1755997839478,-151.0,0.00034792,2]
[381073463,1755997839487,-198.0,0.00035066,2]
[381073464,1755997839496,-198.0,0.00035066,2]
[381073465,1755997839505,-198.0,0.00035066,2]
[381073466,1755997839514,-500.0,0.00035066,2]
[381073467,1755997839524,-198.0,0.00035066,2]
[381073468,1755997839533,-151.0,0.00035066,2]
[381073469,1755997839543,-1349.1704425,0.00035326,2]
[381073470,1755997839552,-422.0,0.0003534,2]
[381073471,1755997839562,-151.0,0.0003534,2]
[381073472,1755997839571,-301.55251562,0.00035439,24]
[381073473,1755997839580,-161.64253542,0.00035614,2]
[381073474,1755997839590,-754.73,0.00035616,120]
[381073475,1755997839600,-358.46591852,0.00036332,16]
[381073476,1755997839609,-754.73,0.00036986,120]
[381073477,1755997839619,-10636.97,0.00037,14]
[381073478,1755997839629,-301.55251562,0.00037166,28]
[381073479,1755997839638,-261.41,0.000376,7]
[381073480,1755997839647,-874.5,0.00038,14]
[381073481,1755997839657,-150.0,0.00038098,2]
[381073482,1755997839668,-754.73,0.00038356,120]
[381073483,1755997839677,-7386.81164682,0.00038751,3]
[381073484,1755997839686,-1349.1704425,0.00038761,2]
[381073485,1755997839696,-301.55251562,0.00038892,32]
[381073486,1755997839705,-2645.12070913,0.00038981,10]
[381073487,1755997839716,-10636.97,0.000394,14]
[381073488,1755997839725,-754.73,0.00039726,120]
[381073489,1755997839734,-301.55251562,0.00040619,36]
[381073490,1755997839744,-754.73,0.00041095,120]
[381073491,1755997839753,-874.5,0.000411,14]
[381073492,1755997839762,-1349.1704425,0.00042197,28]
[381073493,1755997839772,-301.55251562,0.00042345,39]
[381073494,1755997839781,-754.73,0.00042465,120]
[381073496,1755997839790,-160.0,0.0004278,7]
[381073497,1755997839800,-673.26,0.000436,14]
[381073499,1755997839809,-754.73,0.00043835,120]
[381073501,1755997839818,-301.55251562,0.00044072,43]
[381073502,1755997839828,-503.64461528,0.00044471,16]
[381073503,1755997839837,-754.73,0.00045205,120]
[381073504,1755997839847,-10636.97,0.000453,14]
[381073505,1755997839857,-1349.1704425,0.00045632,28]
[381073506,1755997839866,-301.55251562,0.00045798,47]
[381073507,1755997839875,-754.73,0.00046575,120]
[381073508,1755997839884,-844.50316758,0.0004658,120]
[381073510,1755997839895,-160.0,0.0004658,120]
[381073511,1755997839905,-217.0334113,0.0004658,120]
[381073512,1755997839914,-160.0,0.000466,120]
[381073513,1755997839923,-2520.749,0.00046967,30]
[381073514,1755997839933,-5000.0,0.00047,120]
[381073515,1755997839942,-500.0,0.0004748,30]
[381073516,1755997839951,-7386.81164682,0.0004749,4]
[381073517,1755997839961,-5000.0,0.000475,120]
[381073518,1755997839973,-301.55251562,0.00047525,50]
[381073519,1755997839982,-754.73,0.00047945,120]
[381073520,1755997839993,-673.26,0.00048,14]
[381073521,1755997840002,-10187.23050977,0.000482,120]
[381073522,1755997840012,-5000.0,0.000485,120]
[381073523,1755997840022,-1000.0,0.000488,120]
[381073524,1755997840031,-150.0,0.00049,120]
[381073525,1755997840041,-5000.0,0.00049,120]
[381073526,1755997840050,-1349.1704425,0.00049067,28]
[381073527,1755997840059,-500.0,0.00049143,30]
[381073528,1755997840069,-7386.81164682,0.00049205,4]
[381073530,1755997840079,-173.61463414,0.00049215,41]
[381073531,1755997840088,-42158.07611877,0.00049215,120]
[381073532,1755997840097,-301.55251562,0.00049251,54]
[381073533,1755997840107,-1000.0,0.000493,120]
[381073534,1755997840116,-157.0,0.000493,120]
[381073536,1755997840126,-150.0,0.000493,10]
[381073537,1755997840135,-29547.2465873,0.00049304,4]
[381073538,1755997840145,-29547.2465873,0.00049305,4]
[381073539,1755997840156,-188.9947005,0.00049314,2]
[381073540,1755997840165,-200.0812057,0.00049314,2]
[381073541,1755997840175,-250.0,0.00049314,120]
[381073542,1755997840184,-300.0,0.00049314,120]
[381073543,1755997840193,-151.0,0.00049314,120]
[381073544,1755997840203,-500.0,0.00049314,120]
[381073545,1755997840212,-250.0,0.00049314,120]
[381073546,1755997840223,-300.0,0.00049314,120]
[381073547,1755997840233,-151.0,0.00049314,120]
[381073548,1755997840243,-500.0,0.00049314,120]
[381073549,1755997840253,-250.0,0.00049314,120]
[381073550,1755997840264,-300.0,0.00049314,120]
[381073551,1755997840273,-151.0,0.00049314,120]
[381073552,1755997840284,-500.0,0.00049314,120]
[381073553,1755997840297,-300.0,0.00049314,120]
[381073554,1755997840307,-151.0,0.00049314,120]
[381073555,1755997840319,-500.0,0.00049314,120]
[381073556,1755997840332,-250.0,0.00049314,120]
[381073557,1755997840342,-300.0,0.00049314,120]
[381073558,1755997840351,-151.0,0.00049314,120]
[381073559,1755997840362,-250.0,0.00049314,120]
[381073560,1755997840372,-300.0,0.00049314,120]
[381073561,1755997840382,-300.0,0.00049314,120]
[381073562,1755997840392,-151.0,0.00049314,120]
[381073563,1755997840402,-500.0,0.00049314,120]
[381073564,1755997840413,-250.0,0.00049314,120]
[381073565,1755997840423,-300.0,0.00049314,120]
[381073566,1755997840432,-300.0,0.00049314,120]
[381073567,1755997840443,-151.0,0.00049314,120]
[381073568,1755997840453,-250.0,0.00049314,120]
[381073569,1755997840462,-500.0,0.00049314,120]
[381073570,1755997840473,-300.0,0.00049314,120]
[381073571,1755997840483,-151.0,0.00049314,120]
[381073572,1755997840493,-500.0,0.00049314,120]
[381073573,1755997840503,-300.0,0.00049314,120]
[381073574,1755997840512,-250.0,0.00049314,120]
[381073575,1755997840521,-500.0,0.00049314,120]
[381073576,1755997840531,-300.0,0.00049314,120]
[381073577,1755997840541,-250.0,0.00049314,120]
[381073578,1755997840550,-300.0,0.00049314,120]
[381073579,1755997840560,-250.0,0.00049314,120]
[381073580,1755997840570,-250.0,0.00049314,120]
[381073581,1755997840580,-300.0,0.00049314,120]
[381073582,1755997840589,-300.0,0.00049314,120]
[381073583,1755997840599,-250.0,0.00049314,120]
[381073584,1755997840609,-300.0,0.00049314,120]
[381073585,1755997840618,-300.0,0.00049314,120]
[381073586,1755997840628,-250.0,0.00049314,120]
[381073587,1755997840637,-300.0,0.00049314,120]
[381073588,1755997840647,-250.0,0.00049314,120]
[381073589,1755997840656,-300.0,0.00049314,120]
[381073590,1755997840665,-250.0,0.00049314,120]
[381073591,1755997840675,-300.0,0.00049314,120]
[381073592,1755997840684,-250.0,0.00049314,120]
[381073593,1755997840693,-300.0,0.00049314,120]
[381073594,1755997840702,-250.0,0.00049314,120]
[381073595,1755997840712,-250.0,0.00049314,120]
[381073596,1755997840722,-250.0,0.00049314,120]
[381073597,1755997840731,-151.0,0.00049314,120]
[381073598,1755997840741,-16000.0,0.00049314,120]
[381073599,1755997840751,-250.0,0.00049314,120]
[381073600,1755997840760,-151.0,0.00049314,120]
[381073601,1755997840771,-151.0,0.00049314,120]
[381073602,1755997840781,-151.0,0.00049314,120]
[381073603,1755997840790,-151.0,0.00049314,120]
[381073604,1755997840800,-151.0,0.00049314,120]
[381073605,1755997840809,-151.0,0.00049314,120]
[381073606,1755997840819,-151.0,0.00049314,120]
[381073607,1755997840828,-151.0,0.00049314,120]
[381073608,1755997840838,-151.0,0.00049314,120]
[381073609,1755997840847,-16592.0,0.00049314,120]
[381073610,1755997840857,-151.0,0.00049314,120]
[381073611,1755997840867,-151.0,0.00049314,120]
[381073612,1755997840876,-17205.904,0.00049314,120]
[381073613,1755997840886,-156.587,0.00049314,120]
[381073614,1755997840895,-151.0,0.00049314,120]
[381073615,1755997840905,-17842.522448,0.00049314,120]
[381073616,1755997840915,-162.380719,0.00049314,120]
[381073617,1755997840924,-151.0,0.00049314,120]
[381073618,1755997840935,-18502.69577858,0.00049314,120]
[381073619,1755997840955,-168.3888056,0.00049314,120]
[381073620,1755997840965,-151.0,0.00049314,120]
[381073621,1755997840975,-19187.29552238,0.00049314,120]
[381073622,1755997840985,-151.0,0.00049314,120]
[381073623,1755997840995,-19897.22545671,0.00049314,120]
[381073624,1755997841005,-151.0,0.00049314,120]
[381073625,1755997841015,-174.61919141,0.00049314,120]
[381073626,1755997841025,-20633.42279861,0.00049314,120]
[381073627,1755997841035,-181.08010149,0.00049314,120]
[381073628,1755997841044,-187.78006525,0.00049314,120]
[381073629,1755997841054,-194.72792766,0.00049314,120]
[381073630,1755997841064,-480.0,0.00049315,30]
[381073631,1755997841074,-480.0,0.00049315,120]
[381073632,1755997841084,-480.0,0.00049315,120]
[381073633,1755997841094,-480.0,0.00049315,120]
[381073634,1755997841104,-480.0,0.00049315,120]
[381073635,1755997841114,-480.0,0.00049315,120]
[381073636,1755997841124,-480.0,0.00049315,120]
[381073637,1755997841133,-480.0,0.00049315,120]
[381073638,1755997841143,-480.0,0.00049315,120]
[381073639,1755997841153,-480.0,0.00049315,120]
[381073640,1755997841163,-480.0,0.00049315,120]
[381073641,1755997841173,-480.0,0.00049315,120]
[381073642,1755997841183,-480.0,0.00049315,120]
[381073643,1755997841192,-724.98,0.00049315,120]
[381073644,1755997841203,-411.18629182,0.00049315,120]
[381073645,1755997841213,-480.0,0.00049315,120]
[381073646,1755997841225,-516.80636787,0.00049315,120]
[381073647,1755997841235,-463.63376916,0.00049315,120]
[381073648,1755997841245,-480.0,0.00049315,120]
[381073649,1755997841255,-463.79972665,0.00049315,120]
[381073650,1755997841266,-480.0,0.00049315,120]
[381073651,1755997841276,-480.0,0.00049315,120]
[381073652,1755997841287,-686.03,0.00049315,120]
[381073653,1755997841297,-480.0,0.00049315,120]
[381073654,1755997841307,-480.0,0.00049315,120]
[381073655,1755997841318,-480.0,0.00049315,120]
[381073656,1755997841332,-480.70128005,0.00049315,120]
[381073657,1755997841342,-480.0,0.00049315,120]
[381073658,1755997841353,-480.0,0.00049315,120]
[381073659,1755997841363,-480.0,0.00049315,120]
[381073660,1755997841372,-151.0,0.00049315,120]
[381073661,1755997841382,-480.0,0.00049315,120]
[381073662,1755997841392,-480.0,0.00049315,120]
[381073663,1755997841404,-480.0,0.00049315,120]
[381073664,1755997841415,-480.0,0.00049315,120]
[381073665,1755997841424,-480.0,0.00049315,120]
[381073666,1755997841435,-463.29189966,0.00049315,120]
[381073667,1755997841444,-480.0,0.00049315,5]
[381073668,1755997841454,-480.0,0.00049315,120]
[381073669,1755997841464,-480.0,0.00049315,120]
[381073670,1755997841475,-480.0,0.00049315,120]
[381073671,1755997841485,-161.0,0.00049315,30]
[381073672,1755997841494,-161.0,0.00049315,30]
[381073673,1755997841504,-161.0,0.00049315,30]
[381073674,1755997841514,-168.62637664,0.00049315,30]
[381073675,1755997841524,-480.0,0.00049315,120]
[381073676,1755997841534,-710.93,0.00049315,120]
[381073677,1755997841544,-480.0,0.00049315,120]
[381073678,1755997841554,-480.0,0.00049315,120]
[381073679,1755997841563,-480.0,0.00049315,120]
[381073680,1755997841573,-480.0,0.00049315,120]
[381073681,1755997841583,-480.0,0.00049315,120]
[381073682,1755997841593,-480.0,0.00049315,120]
[381073683,1755997841603,-693.37,0.00049315,120]
[381073684,1755997841613,-480.0,0.00049315,120]
[381073685,1755997841623,-480.0,0.00049315,120]
[381073686,1755997841633,-480.0,0.00049315,120]
[381073687,1755997841643,-511.25,0.00049315,120]
[381073688,1755997841653,-480.0,0.00049315,120]
[381073689,1755997841664,-1000.0,0.00049315,120]
[381073690,1755997841674,-480.0,0.00049315,120]
[381073691,1755997841684,-482.21500044,0.00049315,120]
[381073692,1755997841694,-676.85,0.00049315,120]
[381073693,1755997841704,-480.0,0.00049315,120]
[381073694,1755997841714,-480.0,0.00049315,120]
[381073695,1755997841725,-480.0,0.00049315,120]
[381073696,1755997841735,-236.0247747,0.00049315,120]
[381073697,1755997841745,-178.31269913,0.00049315,120]
[381073698,1755997841755,-480.0,0.00049315,120]
[381073699,1755997841765,-480.0,0.00049315,120]
[381073700,1755997841776,-662.75,0.00049315,120]
[381073701,1755997841786,-480.0,0.00049315,120]
[381073702,1755997841796,-480.0,0.00049315,120]
[381073703,1755997841806,-547.01,0.00049315,120]
[381073704,1755997841816,-480.0,0.00049315,120]
[381073705,1755997841826,-2557.43,0.00049315,120]
[381073706,1755997841836,-987.53,0.00049315,120]
[381073707,1755997841845,-480.0,0.00049315,120]
[381073708,1755997841855,-480.0,0.00049315,120]
[381073709,1755997841865,-463.31281711,0.00049315,120]
[381073710,1755997841875,-405.76020492,0.00049315,120]
[381073711,1755997841886,-480.0,0.00049315,120]
[381073712,1755997841896,-480.0,0.00049315,120]
[381073713,1755997841906,-570.31,0.00049315,120]
[381073714,1755997841917,-151.0,0.00049315,120]
[381073715,1755997841926,-480.0,0.00049315,120]
[381073716,1755997841936,-151.0,0.00049315,120]
[381073717,1755997841946,-603.58491035,0.00049315,120]
[381073718,1755997841956,-461.0650774,0.00049315,120]
[381073719,1755997841968,-733.83,0.00049315,120]
[381073720,1755997841978,-480.0,0.00049315,120]
[381073721,1755997841988,-480.0,0.00049315,120]
[381073722,1755997841998,-480.0,0.00049315,120]
[381073723,1755997842009,-688.44,0.00049315,120]
[381073724,1755997842019,-480.0,0.00049315,120]
[381073725,1755997842030,-480.0,0.00049315,120]
[381073726,1755997842039,-151.0,0.00049315,120]
[381073727,1755997842049,-151.0,0.00049315,120]
[381073728,1755997842059,-480.0,0.00049315,120]
[381073729,1755997842070,-481.0731712,0.00049315,120]
[381073730,1755997842080,-480.0,0.00049315,120]
[381073731,1755997842090,-985.75,0.00049315,120]
[381073732,1755997842100,-480.0,0.00049315,120]
[381073733,1755997842110,-480.82702631,0.00049315,120]
[381073734,1755997842120,-480.0,0.00049315,120]
[381073735,1755997842131,-480.0,0.00049315,120]
[381073736,1755997842141,-774.62,0.00049315,120]
[381073737,1755997842151,-480.0,0.00049315,120]
[381073738,1755997842161,-480.0,0.00049315,2]
[381073739,1755997842173,-503.94,0.00049315,120]
[381073740,1755997842183,-480.0,0.00049315,120]
[381073741,1755997842193,-1201.71,0.00049315,120]
[381073742,1755997842204,-408.56909937,0.00049315,120]
[381073743,1755997842214,-367.48638743,0.00049315,120]
[381073744,1755997842226,-480.0,0.00049315,120]
[381073745,1755997842236,-480.0,0.00049315,120]
[381073746,1755997842246,-480.0,0.00049315,14]
[381073747,1755997842256,-480.0,0.00049315,120]
[381073748,1755997842266,-1723.31,0.00049315,120]
[381073749,1755997842276,-1059.75,0.00049315,120]
[381073750,1755997842286,-1330.3,0.00049315,120]
[381073751,1755997842296,-480.0,0.00049315,120]
[381073752,1755997842305,-480.0,0.00049315,120]
[381073753,1755997842316,-480.0,0.00049315,120]
[381073754,1755997842330,-1264.16,0.00049315,120]
[381073755,1755997842340,-480.0,0.00049315,120]
[381073756,1755997842350,-151.0,0.00049315,120]
[381073757,1755997842360,-151.0,0.00049315,120]
[381073758,1755997842371,-259.45600196,0.00049315,120]
[381073759,1755997842381,-480.0,0.00049315,120]
[381073760,1755997842391,-575.85965149,0.00049315,120]
[381073761,1755997842401,-480.0,0.00049315,30]
[381073762,1755997842411,-480.0,0.00049315,120]
[381073763,1755997842421,-151.0,0.00049315,120]
[381073764,1755997842431,-481.37192109,0.00049315,120]
[381073765,1755997842441,-1943.29,0.00049315,120]
[381073766,1755997842451,-494.76,0.00049315,120]
[381073767,1755997842461,-845.4,0.00049315,120]
[381073768,1755997842473,-480.0,0.00049315,120]
[381073769,1755997842483,-480.0,0.00049315,120]
[381073770,1755997842493,-480.0,0.00049315,120]
[381073771,1755997842503,-480.0,0.00049315,120]
[381073772,1755997842513,-480.0,0.00049315,120]
[381073773,1755997842522,-589.63,0.00049315,120]
[381073774,1755997842532,-480.0,0.00049315,120]
[381073775,1755997842542,-480.0,0.00049315,120]
[381073776,1755997842552,-480.0,0.00049315,120]
[381073779,1755997842778,-866.74,0.00049315,120]
[381073780,1755997842787,-1205.37,0.00049315,120]
[381073781,1755997842797,-480.6277869,0.00049315,120]
[381073782,1755997842807,-480.0,0.00049315,120]
[381073783,1755997842817,-743.34,0.00049315,120]
[381073784,1755997842827,-2013.31,0.00049315,120]
[381073785,1755997842837,-480.0,0.00049315,120]
[381073787,1755997842846,-480.0,0.00049315,120]
[381073788,1755997842856,-480.0,0.00049315,120]
[381073789,1755997842866,-676.64,0.00049315,120]
[381073790,1755997842875,-548.58,0.00049315,120]